[Event "Champions Chess Tour Finals 2024"]
[Date "2024.12.17"]
[White "So, Wesley"]
[Black "Carlsen, Magnus"]
[WhiteElo "2826"]
[BlackElo "2838"]
[Round "3.2"]
[Result "0-1"]
[TimeControl "600+2"]

1. d4 {[%clk 0:09:53]} Nf6 {[%clk 0:09:51]} 2. c4 {[%clk 0:09:53]} e6 {[%clk
0:09:35]} 3. Nc3 {[%clk 0:09:51]} Bb4 {[%clk 0:09:36]} 4. Qc2 {[%clk 0:09:34]}
d6 {[%clk 0:09:24]} 5. Nf3 {[%clk 0:08:27]} Nbd7 {[%clk 0:09:22]} 6. e3 {[%clk
0:08:05]} b6 {[%clk 0:08:45]} 7. Be2 {[%clk 0:07:42]} Bb7 {[%clk 0:08:44]} 8.
O-O {[%clk 0:07:41]} Bxc3 {[%clk 0:08:44]} 9. Qxc3 {[%clk 0:07:42]} Ne4 {[%clk
0:08:44]} 10. Qc2 {[%clk 0:07:41]} f5 {[%clk 0:08:44]} 11. d5 {[%clk 0:07:22]}
exd5 {[%clk 0:06:27]} 12. Nd4 {[%clk 0:07:12]} dxc4 {[%clk 0:03:25]} 13. Ne6
{[%clk 0:06:21]} Qc8 {[%clk 0:03:26]} 14. f3 {[%clk 0:05:13]} Ke7 {[%clk
0:02:50]} 15. Nxg7 {[%clk 0:04:51]} Qf8 {[%clk 0:02:51]} 16. Nh5 {[%clk
0:04:40]} Nec5 {[%clk 0:02:22]} 17. Qxc4 {[%clk 0:04:27]} Ne5 {[%clk 0:02:10]}
18. Qh4+ {[%clk 0:04:21]} Kd7 {[%clk 0:02:11]} 19. b4 {[%clk 0:04:15]} Ne6
{[%clk 0:02:12]} 20. Bb2 {[%clk 0:04:11]} Qe7 {[%clk 0:01:45]} 21. Qxe7+ {[%clk
0:03:56]} Kxe7 {[%clk 0:01:46]} 22. f4 {[%clk 0:03:56]} Rhg8 {[%clk 0:01:47]}
23. Ng3 {[%clk 0:03:56]} Rxg3 {[%clk 0:01:48]} 24. hxg3 {[%clk 0:03:56]} Ng4
{[%clk 0:01:48]} 25. Bxg4 {[%clk 0:03:17]} fxg4 {[%clk 0:01:48]} 26. f5 {[%clk
0:03:16]} Ng5 {[%clk 0:01:49]} 27. b5 {[%clk 0:03:08]} a6 {[%clk 0:01:46]} 28.
a4 {[%clk 0:02:41]} Ne4 {[%clk 0:01:47]} 29. a5 {[%clk 0:02:03]} Nxg3 {[%clk
0:01:41]} 30. Rfe1 {[%clk 0:01:47]} bxa5 {[%clk 0:01:11]} 31. f6+ {[%clk
0:01:41]} Ke6 {[%clk 0:01:02]} 32. Rxa5 {[%clk 0:01:37]} axb5 {[%clk 0:01:03]}
33. Rxb5 {[%clk 0:01:09]} Be4 {[%clk 0:00:58]} 34. Ra1 {[%clk 0:00:59]} Rc8
{[%clk 0:00:51]} 35. Rg5 {[%clk 0:00:31]} h5 {[%clk 0:00:46]} 36. Rg7 {[%clk
0:00:19]} Nf5 {[%clk 0:00:46]} 37. Rh7 {[%clk 0:00:20]} Rb8 {[%clk 0:00:42]} 38.
Bc3 {[%clk 0:00:21]} c5 {[%clk 0:00:39]} 39. Kh2 {[%clk 0:00:20]} h4 {[%clk
0:00:34]} 40. Raa7 {[%clk 0:00:15]} h3 {[%clk 0:00:21]} 41. Rhe7+ {[%clk
0:00:11]} Kd5 {[%clk 0:00:17]} 42. f7 {[%clk 0:00:12]} Nxe7 {[%clk 0:00:11]} 43.
Rxe7 {[%clk 0:00:13]} hxg2 {[%clk 0:00:12]} 44. Rxe4 {[%clk 0:00:06]} Kxe4
{[%clk 0:00:12]} 45. Bg7 {[%clk 0:00:07]} Kf3 {[%clk 0:00:13]} 46. Kg1 {[%clk
0:00:06]} Rb1+ {[%clk 0:00:13]} 0-1

[Variant "Standard"]
[Site "Europe Echecs"]

[Event "Champions Chess Tour Finals 2024"]
[Date "2024.12.17"]
[White "Nepomniachtchi, Ian"]
[Black "Vachier-Lagrave, Maxime"]
[WhiteElo "2758"]
[BlackElo "2763"]
[Round "3.2"]
[Result "1/2-1/2"]
[TimeControl "600+2"]

1. e4 {[%clk 0:10:02]} c5 {[%clk 0:10:03]} 2. Nf3 {[%clk 0:10:03]} Nc6 {[%clk
0:10:04]} 3. Bb5 {[%clk 0:09:58]} e6 {[%clk 0:10:04]} 4. O-O {[%clk 0:09:57]}
Nge7 {[%clk 0:10:05]} 5. d4 {[%clk 0:09:48]} cxd4 {[%clk 0:10:05]} 6. Nxd4
{[%clk 0:09:49]} Ng6 {[%clk 0:10:06]} 7. Be3 {[%clk 0:09:45]} Be7 {[%clk
0:10:06]} 8. c3 {[%clk 0:09:44]} O-O {[%clk 0:10:05]} 9. Be2 {[%clk 0:09:38]}
Nxd4 {[%clk 0:09:55]} 10. cxd4 {[%clk 0:09:37]} d5 {[%clk 0:09:56]} 11. e5
{[%clk 0:09:38]} f6 {[%clk 0:09:57]} 12. f4 {[%clk 0:09:32]} fxe5 {[%clk
0:09:27]} 13. fxe5 {[%clk 0:09:26]} Rxf1+ {[%clk 0:09:27]} 14. Bxf1 {[%clk
0:09:27]} Bg5 {[%clk 0:09:20]} 15. Qd2 {[%clk 0:09:24]} Bxe3+ {[%clk 0:09:16]}
16. Qxe3 {[%clk 0:09:25]} Bd7 {[%clk 0:09:15]} 17. Nd2 {[%clk 0:09:13]} Qb6
{[%clk 0:09:07]} 18. Nb3 {[%clk 0:08:49]} Rf8 {[%clk 0:08:59]} 19. Bd3 {[%clk
0:07:45]} Nf4 {[%clk 0:07:08]} 20. Rf1 {[%clk 0:07:43]} Nxd3 {[%clk 0:07:08]}
21. Rxf8+ {[%clk 0:07:43]} Kxf8 {[%clk 0:07:09]} 22. Qxd3 {[%clk 0:07:44]} Qb4
{[%clk 0:07:01]} 23. h3 {[%clk 0:07:15]} Kg8 {[%clk 0:06:23]} 24. Kh2 {[%clk
0:07:00]} b6 {[%clk 0:06:15]} 25. a3 {[%clk 0:06:09]} Qf8 {[%clk 0:06:13]} 26.
Qe3 {[%clk 0:05:59]} h6 {[%clk 0:06:01]} 27. Nd2 {[%clk 0:05:49]} Qf5 {[%clk
0:06:02]} 28. Qc3 {[%clk 0:05:34]} Bb5 {[%clk 0:05:52]} 29. Kg1 {[%clk 0:05:20]}
Bd3 {[%clk 0:04:43]} 30. a4 {[%clk 0:04:43]} Kh7 {[%clk 0:04:25]} 31. b4 {[%clk
0:04:44]} a6 {[%clk 0:03:56]} 32. a5 {[%clk 0:04:44]} bxa5 {[%clk 0:03:53]} 33.
bxa5 {[%clk 0:04:45]} Bb5 {[%clk 0:03:43]} 34. Qe3 {[%clk 0:04:26]} Qc2 {[%clk
0:03:38]} 35. Nb3 {[%clk 0:04:24]} Bd3 {[%clk 0:02:59]} 36. Nc5 {[%clk 0:04:24]}
Bf5 {[%clk 0:03:00]} 37. Nxa6 {[%clk 0:04:04]} Qa2 {[%clk 0:02:49]} 38. Nc5
{[%clk 0:03:51]} Qxa5 {[%clk 0:02:48]} 39. g4 {[%clk 0:03:47]} Be4 {[%clk
0:02:42]} 40. Nxe4 {[%clk 0:03:28]} dxe4 {[%clk 0:02:43]} 41. Qxe4+ {[%clk
0:03:29]} Kg8 {[%clk 0:02:44]} 42. Qe3 {[%clk 0:03:20]} Qa2 {[%clk 0:02:41]} 43.
Qf2 {[%clk 0:03:19]} Qb1+ {[%clk 0:02:39]} 44. Kg2 {[%clk 0:03:16]} Qe4+ {[%clk
0:02:35]} 45. Kg3 {[%clk 0:03:16]} Qd3+ {[%clk 0:02:36]} 46. Kh2 {[%clk
0:03:17]} Qe4 {[%clk 0:02:01]} 47. Qd2 {[%clk 0:02:34]} Qf3 {[%clk 0:02:01]} 48.
Qb2 {[%clk 0:02:09]} Qf4+ {[%clk 0:01:56]} 49. Kg2 {[%clk 0:02:10]} Qe4+ {[%clk
0:01:57]} 50. Kf2 {[%clk 0:02:11]} Qf4+ {[%clk 0:01:58]} 51. Kg2 {[%clk
0:02:11]} Qe4+ {[%clk 0:01:58]} 52. Kg1 {[%clk 0:02:12]} Qe3+ {[%clk 0:01:57]}
53. Kg2 {[%clk 0:02:11]} 1/2-1/2

[Variant "Standard"]
[Site "Europe Echecs"]

[Event "Champions Chess Tour Finals 2024"]
[Date "2024.12.17"]
[White "Firouzja, Alireza"]
[Black "Lazavik, Denis"]
[WhiteElo "2756"]
[BlackElo "2553"]
[Round "3.3"]
[Result "1/2-1/2"]
[TimeControl "600+2"]

1. e4 {[%clk 0:09:59]} e5 {[%clk 0:07:09]} 2. Nf3 {[%clk 0:09:59]} Nc6 {[%clk
0:07:08]} 3. Bc4 {[%clk 0:09:58]} Nf6 {[%clk 0:07:07]} 4. d3 {[%clk 0:09:57]}
Be7 {[%clk 0:07:06]} 5. Nc3 {[%clk 0:09:57]} O-O {[%clk 0:07:03]} 6. a4 {[%clk
0:09:55]} d6 {[%clk 0:07:02]} 7. Bd2 {[%clk 0:09:53]} Bg4 {[%clk 0:06:56]} 8. h3
{[%clk 0:09:50]} Bxf3 {[%clk 0:06:54]} 9. Qxf3 {[%clk 0:09:49]} Nd4 {[%clk
0:06:53]} 10. Qd1 {[%clk 0:09:48]} c6 {[%clk 0:06:52]} 11. Ba2 {[%clk 0:09:38]}
a6 {[%clk 0:06:38]} 12. O-O {[%clk 0:09:34]} b5 {[%clk 0:06:35]} 13. Be3 {[%clk
0:09:24]} Ne6 {[%clk 0:06:32]} 14. Qf3 {[%clk 0:09:05]} Qd7 {[%clk 0:06:19]} 15.
h4 {[%clk 0:08:24]} h5 {[%clk 0:05:49]} 16. Ne2 {[%clk 0:08:01]} Ng4 {[%clk
0:05:36]} 17. Bd2 {[%clk 0:08:01]} g6 {[%clk 0:05:31]} 18. Qh3 {[%clk 0:07:46]}
d5 {[%clk 0:05:18]} 19. exd5 {[%clk 0:07:40]} cxd5 {[%clk 0:05:17]} 20. Nc3
{[%clk 0:07:39]} d4 {[%clk 0:04:22]} 21. Nd5 {[%clk 0:07:31]} Rab8 {[%clk
0:04:17]} 22. axb5 {[%clk 0:06:43]} Rxb5 {[%clk 0:04:15]} 23. Nxe7+ {[%clk
0:06:42]} Qxe7 {[%clk 0:04:09]} 24. b4 {[%clk 0:06:42]} Nf4 {[%clk 0:04:09]} 25.
Bxf4 {[%clk 0:06:06]} exf4 {[%clk 0:04:08]} 26. Bc4 {[%clk 0:06:05]} Rxb4 {[%clk
0:04:01]} 27. Rxa6 {[%clk 0:05:37]} Kg7 {[%clk 0:04:00]} 28. Qf3 {[%clk
0:05:36]} Qe5 {[%clk 0:03:33]} 29. Bb3 {[%clk 0:05:02]} Nh6 {[%clk 0:03:25]} 30.
Qc6 {[%clk 0:03:45]} Qe7 {[%clk 0:03:24]} 31. Rfa1 {[%clk 0:02:55]} Re8 {[%clk
0:03:18]} 32. Rf1 {[%clk 0:02:23]} Rf8 {[%clk 0:03:03]} 33. Qd6 {[%clk 0:01:29]}
Qxd6 {[%clk 0:02:57]} 34. Rxd6 {[%clk 0:01:28]} Nf5 {[%clk 0:02:44]} 35. Rd7
{[%clk 0:01:28]} Nxh4 {[%clk 0:02:44]} 36. Ra1 Nf5 {[%clk 0:02:27]} 37. Raa7
{[%clk 0:01:26]} Nh6 {[%clk 0:02:27]} 38. Kf1 {[%clk 0:01:26]} g5 {[%clk
0:01:32]} 39. Ke2 {[%clk 0:01:12]} g4 {[%clk 0:01:30]} 40. Bc4 {[%clk 0:01:09]}
Rb2 {[%clk 0:01:24]} 41. Kd2 {[%clk 0:01:01]} Rb1 {[%clk 0:01:23]} 42. Rxd4
{[%clk 0:00:59]} Rg1 {[%clk 0:01:22]} 43. Bd5 {[%clk 0:00:46]} h4 {[%clk
0:00:47]} 44. Rxf4 {[%clk 0:00:44]} Kg6 {[%clk 0:00:47]} 45. Ra6+ {[%clk
0:00:27]} f6 {[%clk 0:00:44]} 46. Ra5 {[%clk 0:00:19]} f5 {[%clk 0:00:42]} 47.
Rb4 {[%clk 0:00:17]} Kg5 {[%clk 0:00:39]} 48. Rb6 {[%clk 0:00:17]} Rf6 {[%clk
0:00:37]} 49. Rb7 {[%clk 0:00:16]} Rf1 {[%clk 0:00:34]} 50. Ke2 {[%clk 0:00:16]}
Rc1 {[%clk 0:00:33]} 51. Rc7 {[%clk 0:00:15]} Rd6 {[%clk 0:00:31]} 52. Kd2
{[%clk 0:00:14]} Rf1 {[%clk 0:00:30]} 53. Ke2 {[%clk 0:00:13]} Rc1 {[%clk
0:00:29]} 54. d4 {[%clk 0:00:12]} h3 {[%clk 0:00:25]} 55. gxh3 {[%clk 0:00:12]}
gxh3 {[%clk 0:00:24]} 56. Rg7+ {[%clk 0:00:12]} Rg6 {[%clk 0:00:23]} 57. Rxg6+
{[%clk 0:00:11]} Kxg6 {[%clk 0:00:22]} 58. Ra6+ {[%clk 0:00:10]} Kg5 {[%clk
0:00:21]} 59. f4+ {[%clk 0:00:09]} Kh5 {[%clk 0:00:18]} 60. c4 {[%clk 0:00:08]}
h2 {[%clk 0:00:17]} 61. c5 {[%clk 0:00:09]} h1=Q {[%clk 0:00:14]} 62. Bxh1
{[%clk 0:00:09]} Rxh1 {[%clk 0:00:14]} 63. Rf6 {[%clk 0:00:06]} Rc1 {[%clk
0:00:14]} 64. Kd2 {[%clk 0:00:06]} Rc4 65. Kd3 Rc1 {[%clk 0:00:09]} 66. c6
{[%clk 0:00:08]} Ng8 {[%clk 0:00:06]} 67. Rxf5+ {[%clk 0:00:08]} Kg6 {[%clk
0:00:07]} 68. Rg5+ {[%clk 0:00:03]} Kf7 {[%clk 0:00:07]} 69. d5 {[%clk 0:00:04]}
Ne7 {[%clk 0:00:06]} 70. Kd4 {[%clk 0:00:04]} Nxc6+ {[%clk 0:00:05]} 71. dxc6
{[%clk 0:00:04]} Rxc6 {[%clk 0:00:05]} 72. Ke4 {[%clk 0:00:05]} Rc4+ {[%clk
0:00:06]} 73. Kf3 {[%clk 0:00:05]} Ra4 {[%clk 0:00:06]} 74. Re5 {[%clk 0:00:05]}
Ra3+ {[%clk 0:00:06]} 75. Kg4 {[%clk 0:00:05]} Ra6 {[%clk 0:00:07]} 76. Rb5
{[%clk 0:00:05]} Rc6 {[%clk 0:00:07]} 77. Rb7+ {[%clk 0:00:04]} Kf6 {[%clk
0:00:07]} 78. Rh7 {[%clk 0:00:04]} Kg6 {[%clk 0:00:08]} 79. Rh5 {[%clk 0:00:04]}
Ra6 {[%clk 0:00:08]} 80. f5+ {[%clk 0:00:03]} Kg7 {[%clk 0:00:09]} 81. Kg5
{[%clk 0:00:03]} Rb6 {[%clk 0:00:09]} 82. Rh1 {[%clk 0:00:03]} Rb2 {[%clk
0:00:08]} 83. Rg1 {[%clk 0:00:02]} Kf7 {[%clk 0:00:08]} 84. Rg4 {[%clk 0:00:02]}
Rc2 {[%clk 0:00:08]} 85. Ra4 {[%clk 0:00:02]} Rg2+ {[%clk 0:00:08]} 86. Kf4
{[%clk 0:00:02]} Rf2+ {[%clk 0:00:09]} 87. Ke4 {[%clk 0:00:03]} Re2+ {[%clk
0:00:09]} 88. Kd5 {[%clk 0:00:03]} Rd2+ {[%clk 0:00:09]} 89. Ke5 {[%clk
0:00:03]} Re2+ {[%clk 0:00:10]} 1/2-1/2

[Variant "Standard"]
[Site "Europe Echecs"]

[Event "Champions Chess Tour Finals 2024"]
[Date "2024.12.17"]
[White "So, Wesley"]
[Black "Carlsen, Magnus"]
[WhiteElo "2826"]
[BlackElo "2838"]
[Round "3.3"]
[Result "0-1"]
[TimeControl "600+2"]

1. e4 {[%clk 0:09:58]} c5 {[%clk 0:06:36]} 2. Nf3 {[%clk 0:09:57]} e6 {[%clk
0:06:35]} 3. d4 {[%clk 0:09:53]} cxd4 {[%clk 0:06:34]} 4. Nxd4 {[%clk 0:09:52]}
a6 {[%clk 0:06:33]} 5. g3 {[%clk 0:09:32]} d5 {[%clk 0:06:31]} 6. Nb3 {[%clk
0:09:26]} Nf6 {[%clk 0:06:26]} 7. exd5 {[%clk 0:09:20]} exd5 {[%clk 0:06:25]} 8.
Bg2 {[%clk 0:09:13]} Nc6 {[%clk 0:06:22]} 9. O-O {[%clk 0:09:09]} Be7 {[%clk
0:06:20]} 10. Be3 {[%clk 0:08:48]} O-O {[%clk 0:06:16]} 11. Nc3 {[%clk 0:08:47]}
Be6 {[%clk 0:05:59]} 12. h3 {[%clk 0:08:27]} Rc8 {[%clk 0:05:56]} 13. a3 {[%clk
0:08:03]} Re8 {[%clk 0:05:53]} 14. Re1 {[%clk 0:07:59]} h6 {[%clk 0:05:45]} 15.
Kh2 {[%clk 0:07:51]} Bd6 {[%clk 0:05:22]} 16. Nd4 {[%clk 0:07:25]} Nxd4 {[%clk
0:04:41]} 17. Bxd4 {[%clk 0:07:23]} Bc5 {[%clk 0:04:40]} 18. Ne2 {[%clk
0:06:25]} Bxd4 {[%clk 0:04:36]} 19. Nxd4 {[%clk 0:06:23]} Qb6 {[%clk 0:04:35]}
20. Re3 {[%clk 0:06:10]} Bd7 {[%clk 0:04:28]} 21. Rb3 {[%clk 0:06:07]} Qa7
{[%clk 0:04:26]} 22. Kg1 {[%clk 0:05:46]} Ne4 {[%clk 0:04:08]} 23. Re3 {[%clk
0:05:44]} Qb6 {[%clk 0:04:08]} 24. Rb1 {[%clk 0:05:41]} Ng5 {[%clk 0:04:00]} 25.
Rb3 {[%clk 0:05:27]} Qa7 {[%clk 0:03:46]} 26. h4 {[%clk 0:05:25]} Ne4 {[%clk
0:03:46]} 27. Re3 {[%clk 0:05:19]} Qb6 {[%clk 0:03:42]} 28. Rb3 {[%clk 0:05:15]}
Qa7 {[%clk 0:03:40]} 29. Re3 {[%clk 0:05:13]} Qb6 {[%clk 0:03:20]} 30. c3 {[%clk
0:05:05]} Nf6 {[%clk 0:03:19]} 31. Nc2 {[%clk 0:04:46]} Bf5 {[%clk 0:03:17]} 32.
Rf3 {[%clk 0:04:20]} Be4 {[%clk 0:03:08]} 33. Rf4 {[%clk 0:04:17]} g5 {[%clk
0:03:01]} 34. hxg5 {[%clk 0:04:12]} hxg5 {[%clk 0:03:00]} 35. Rxe4 {[%clk
0:04:12]} dxe4 {[%clk 0:02:56]} 36. Ne3 {[%clk 0:03:51]} Rcd8 {[%clk 0:02:54]}
37. Qe2 {[%clk 0:03:40]} Qb5 {[%clk 0:02:49]} 38. c4 {[%clk 0:03:34]} Qe5 {[%clk
0:02:47]} 39. Re1 {[%clk 0:03:16]} Rd3 {[%clk 0:02:42]} 40. Ng4 {[%clk 0:02:16]}
Nxg4 {[%clk 0:02:37]} 41. Qxg4 {[%clk 0:02:15]} Rd4 {[%clk 0:02:08]} 42. Qe2
{[%clk 0:02:06]} e3 {[%clk 0:02:03]} 43. fxe3 {[%clk 0:01:44]} Qxg3 {[%clk
0:02:01]} 0-1

[Variant "Standard"]
[Site "Europe Echecs"]

[Event "Champions Chess Tour Finals 2024"]
[Date "2024.12.17"]
[White "Nepomniachtchi, Ian"]
[Black "Vachier-Lagrave, Maxime"]
[WhiteElo "2758"]
[BlackElo "2763"]
[Round "3.3"]
[Result "1-0"]
[TimeControl "600+2"]

1. e4 {[%clk 0:09:59]} c5 {[%clk 0:07:24]} 2. Nf3 {[%clk 0:09:58]} Nc6 {[%clk
0:07:23]} 3. Bb5 {[%clk 0:09:57]} g6 {[%clk 0:07:22]} 4. O-O {[%clk 0:09:55]}
Bg7 {[%clk 0:07:22]} 5. Re1 {[%clk 0:09:54]} e5 {[%clk 0:07:20]} 6. Bxc6 {[%clk
0:09:53]} dxc6 {[%clk 0:07:19]} 7. d3 {[%clk 0:09:52]} Qe7 {[%clk 0:07:13]} 8.
a4 {[%clk 0:09:49]} Nf6 {[%clk 0:07:12]} 9. a5 {[%clk 0:09:48]} O-O {[%clk
0:07:03]} 10. Be3 {[%clk 0:09:46]} Bg4 {[%clk 0:06:56]} 11. Nbd2 {[%clk
0:09:42]} Nd7 {[%clk 0:06:54]} 12. h3 {[%clk 0:09:33]} Be6 {[%clk 0:06:52]} 13.
Ng5 {[%clk 0:09:29]} b6 {[%clk 0:06:42]} 14. Nxe6 {[%clk 0:09:17]} Qxe6 {[%clk
0:06:41]} 15. Ra3 {[%clk 0:09:05]} Rfd8 {[%clk 0:06:07]} 16. axb6 {[%clk
0:09:03]} axb6 {[%clk 0:06:06]} 17. Qa1 {[%clk 0:09:02]} Qe8 {[%clk 0:06:05]}
18. Ra7 {[%clk 0:08:44]} Bf8 {[%clk 0:05:53]} 19. Qa2 {[%clk 0:08:29]} Rxa7
{[%clk 0:05:44]} 20. Qxa7 {[%clk 0:08:28]} Ra8 {[%clk 0:05:39]} 21. Qb7 {[%clk
0:08:27]} Qc8 {[%clk 0:05:38]} 22. Qxc8 {[%clk 0:08:26]} Rxc8 {[%clk 0:05:38]}
23. Ra1 {[%clk 0:08:24]} Bd6 {[%clk 0:05:37]} 24. Nc4 {[%clk 0:08:08]} Bc7
{[%clk 0:05:35]} 25. Ra7 {[%clk 0:08:07]} Kf8 {[%clk 0:05:23]} 26. g3 {[%clk
0:08:06]} Ke7 {[%clk 0:05:13]} 27. Kg2 {[%clk 0:07:32]} f6 {[%clk 0:04:28]} 28.
f4 {[%clk 0:07:24]} Ke6 {[%clk 0:04:27]} 29. Kf3 {[%clk 0:07:23]} b5 {[%clk
0:04:15]} 30. Nd2 {[%clk 0:07:15]} Bb6 {[%clk 0:04:13]} 31. Ra6 {[%clk 0:07:12]}
Rb8 {[%clk 0:04:05]} 32. Nb3 {[%clk 0:06:20]} f5 {[%clk 0:03:52]} 33. exf5+
{[%clk 0:05:59]} gxf5 {[%clk 0:03:51]} 34. fxe5 {[%clk 0:05:46]} Nxe5+ {[%clk
0:03:38]} 35. Ke2 {[%clk 0:05:41]} Nd7 {[%clk 0:03:16]} 36. Nd2 {[%clk 0:05:36]}
Rg8 {[%clk 0:02:56]} 37. Bf2 {[%clk 0:05:31]} Kd6 {[%clk 0:02:51]} 38. Nf3
{[%clk 0:05:11]} Kc7 {[%clk 0:02:38]} 39. Nh4 {[%clk 0:05:02]} Re8+ {[%clk
0:02:30]} 40. Kf3 {[%clk 0:04:49]} Ne5+ {[%clk 0:02:04]} 41. Kg2 {[%clk
0:04:48]} Ng6 {[%clk 0:02:02]} 42. Nxf5 {[%clk 0:04:11]} Re2 {[%clk 0:01:57]}
43. Ne3 {[%clk 0:03:54]} Kb7 {[%clk 0:01:57]} 44. Rxb6+ {[%clk 0:03:47]} Kxb6
{[%clk 0:01:53]} 45. Kf1 {[%clk 0:03:46]} Rxf2+ {[%clk 0:01:42]} 46. Kxf2 {[%clk
0:03:45]} Kc7 {[%clk 0:01:40]} 47. Kf3 {[%clk 0:03:43]} Kd6 {[%clk 0:01:38]} 48.
Ke4 {[%clk 0:03:43]} Ke6 {[%clk 0:01:37]} 49. g4 {[%clk 0:03:38]} Kf6 {[%clk
0:01:33]} 50. Nf5 {[%clk 0:03:21]} Kg5 {[%clk 0:01:30]} 51. Kf3 {[%clk 0:03:21]}
h5 {[%clk 0:01:21]} 52. gxh5 {[%clk 0:03:06]} Kxh5 {[%clk 0:01:20]} 53. Kg3
{[%clk 0:02:50]} Kg5 {[%clk 0:01:18]} 54. Nd6 {[%clk 0:02:49]} Kh5 {[%clk
0:01:06]} 55. Nf7 {[%clk 0:02:38]} c4 {[%clk 0:01:04]} 56. dxc4 {[%clk 0:02:37]}
bxc4 {[%clk 0:01:03]} 57. c3 {[%clk 0:02:36]} c5 {[%clk 0:00:58]} 58. Kf3 {[%clk
0:02:30]} Kh4 {[%clk 0:00:53]} 59. Ke4 {[%clk 0:02:28]} 1-0

[Variant "Standard"]
[Site "Europe Echecs"]

[Event "Champions Chess Tour Finals 2024"]
[Date "2024.12.18"]
[White "Firouzja, Alireza"]
[Black "Nepomniachtchi, Ian"]
[WhiteElo "2756"]
[BlackElo "2758"]
[Round "4.1"]
[Result "1/2-1/2"]
[TimeControl "600+2"]

1. Nf3 {[%clk 0:10:03]} d5 {[%clk 0:10:01]} 2. c4 {[%clk 0:10:03]} e6 {[%clk
0:10:01]} 3. g3 {[%clk 0:10:04]} Nf6 {[%clk 0:10:02]} 4. Bg2 {[%clk 0:10:04]}
Be7 {[%clk 0:10:03]} 5. O-O {[%clk 0:10:04]} O-O {[%clk 0:10:02]} 6. d4 {[%clk
0:10:04]} dxc4 {[%clk 0:10:00]} 7. Na3 {[%clk 0:10:04]} Bxa3 {[%clk 0:09:34]} 8.
bxa3 {[%clk 0:10:05]} Bd7 {[%clk 0:09:30]} 9. Ne5 {[%clk 0:10:04]} Bc6 {[%clk
0:09:18]} 10. Nxc6 {[%clk 0:10:04]} Nxc6 {[%clk 0:09:19]} 11. Bb2 {[%clk
0:10:05]} Nd5 {[%clk 0:08:33]} 12. Rc1 {[%clk 0:10:02]} Nb6 {[%clk 0:08:32]} 13.
e3 {[%clk 0:09:55]} Qe7 {[%clk 0:08:27]} 14. Rb1 {[%clk 0:09:44]} Rfd8 {[%clk
0:08:05]} 15. Qc1 {[%clk 0:09:42]} Rab8 {[%clk 0:07:55]} 16. Ba1 {[%clk
0:09:32]} e5 {[%clk 0:07:19]} 17. d5 {[%clk 0:09:20]} Nxd5 {[%clk 0:07:12]} 18.
Qxc4 {[%clk 0:09:20]} Nb6 {[%clk 0:06:56]} 19. Qc2 {[%clk 0:09:18]} Rd6 {[%clk
0:06:50]} 20. a4 {[%clk 0:08:32]} Rbd8 {[%clk 0:06:02]} 21. Bc3 {[%clk 0:08:05]}
a5 {[%clk 0:06:04]} 22. Be4 {[%clk 0:06:31]} h6 {[%clk 0:05:33]} 23. Rfc1 {[%clk
0:06:01]} Qe6 {[%clk 0:05:04]} 24. Be1 {[%clk 0:05:38]} g6 {[%clk 0:04:44]} 25.
Qb3 {[%clk 0:03:26]} Qxb3 {[%clk 0:04:39]} 26. axb3 {[%clk 0:03:24]} Nd5 {[%clk
0:04:36]} 27. g4 {[%clk 0:02:22]} R8d7 {[%clk 0:04:19]} 28. Rc4 {[%clk 0:02:15]}
Ncb4 {[%clk 0:03:58]} 29. Bxd5 {[%clk 0:02:09]} Rxd5 {[%clk 0:03:45]} 30. Bxb4
{[%clk 0:02:10]} axb4 {[%clk 0:03:46]} 31. Rxb4 {[%clk 0:02:11]} b6 {[%clk
0:03:42]} 32. Rb2 {[%clk 0:01:37]} Rc5 {[%clk 0:03:41]} 33. Re4 {[%clk 0:01:01]}
f6 {[%clk 0:03:21]} 34. b4 {[%clk 0:00:50]} Rc1+ {[%clk 0:03:22]} 35. Kg2 {[%clk
0:00:51]} Ra1 {[%clk 0:03:03]} 36. b5 {[%clk 0:00:48]} Rc1 {[%clk 0:02:55]} 37.
a5 {[%clk 0:00:35]} bxa5 {[%clk 0:02:55]} 38. Ra4 {[%clk 0:00:36]} Kf7 {[%clk
0:02:05]} 39. Rxa5 {[%clk 0:00:36]} h5 {[%clk 0:02:02]} 40. b6 {[%clk 0:00:23]}
cxb6 {[%clk 0:02:01]} 41. Rxb6 {[%clk 0:00:24]} Rc4 {[%clk 0:01:35]} 42. gxh5
{[%clk 0:00:17]} Rg4+ {[%clk 0:01:30]} 43. Kf3 {[%clk 0:00:17]} gxh5 {[%clk
0:01:31]} 44. Raa6 {[%clk 0:00:16]} Rg6 {[%clk 0:01:16]} 45. Ke4 {[%clk
0:00:15]} Rg4+ {[%clk 0:01:17]} 46. Kf3 {[%clk 0:00:14]} Rg6 {[%clk 0:01:18]}
47. Ke4 {[%clk 0:00:09]} Kg7 {[%clk 0:01:19]} 48. Kf5 {[%clk 0:00:06]} Rf7
{[%clk 0:01:13]} 49. f4 {[%clk 0:00:07]} exf4 {[%clk 0:01:13]} 50. exf4 {[%clk
0:00:08]} h4 {[%clk 0:00:59]} 51. h3 {[%clk 0:00:06]} Rg3 {[%clk 0:00:59]} 52.
Rxf6 {[%clk 0:00:06]} 1/2-1/2

[Variant "Standard"]
[Site "Europe Echecs"]

[Event "Champions Chess Tour Finals 2024"]
[Date "2024.12.18"]
[White "So, Wesley"]
[Black "Keymer, Vincent"]
[WhiteElo "2826"]
[BlackElo "2649"]
[Round "4.1"]
[Result "1-0"]
[TimeControl "600+2"]

1. d4 {[%clk 0:10:00]} Nf6 {[%clk 0:10:03]} 2. c4 {[%clk 0:10:00]} e6 {[%clk
0:10:04]} 3. g3 {[%clk 0:09:59]} Bb4+ {[%clk 0:10:02]} 4. Nd2 {[%clk 0:09:51]}
d5 {[%clk 0:09:59]} 5. Bg2 {[%clk 0:09:48]} a5 {[%clk 0:09:59]} 6. Ngf3 {[%clk
0:09:00]} dxc4 {[%clk 0:10:00]} 7. a3 {[%clk 0:08:44]} Bxd2+ {[%clk 0:09:59]} 8.
Bxd2 {[%clk 0:08:44]} a4 {[%clk 0:08:50]} 9. O-O {[%clk 0:07:36]} b5 {[%clk
0:08:27]} 10. Ne5 {[%clk 0:06:54]} Ra6 {[%clk 0:08:27]} 11. Bb4 {[%clk 0:06:55]}
Nd5 {[%clk 0:08:05]} 12. Bc5 {[%clk 0:06:55]} Bb7 {[%clk 0:07:13]} 13. e4 {[%clk
0:06:32]} Ne7 {[%clk 0:06:01]} 14. Qd2 {[%clk 0:06:10]} O-O {[%clk 0:05:42]} 15.
Qb4 {[%clk 0:05:52]} Re8 {[%clk 0:03:14]} 16. Qxb5 {[%clk 0:05:46]} Qc8 {[%clk
0:03:15]} 17. Qxc4 {[%clk 0:05:25]} Nd7 {[%clk 0:03:05]} 18. Nxd7 {[%clk
0:05:02]} Qxd7 {[%clk 0:03:05]} 19. Rac1 {[%clk 0:05:01]} h6 {[%clk 0:02:52]}
20. Rfd1 {[%clk 0:04:57]} Nc8 {[%clk 0:02:42]} 21. Qd3 {[%clk 0:03:39]} Ra8
{[%clk 0:02:36]} 22. h4 {[%clk 0:03:19]} Nd6 {[%clk 0:02:35]} 23. Bb4 {[%clk
0:03:11]} Rac8 {[%clk 0:02:31]} 24. Rc5 {[%clk 0:03:09]} Red8 {[%clk 0:01:57]}
25. Rd2 {[%clk 0:02:57]} Kh8 {[%clk 0:01:51]} 26. Kh2 {[%clk 0:02:52]} Rb8
{[%clk 0:01:39]} 27. d5 {[%clk 0:02:43]} exd5 {[%clk 0:01:37]} 28. exd5 {[%clk
0:02:44]} Re8 {[%clk 0:01:28]} 29. Rdc2 {[%clk 0:02:30]} Rbc8 {[%clk 0:01:29]}
30. Ba5 {[%clk 0:02:30]} Qg4 {[%clk 0:01:05]} 31. Rxc7 {[%clk 0:02:20]} Rxc7
{[%clk 0:01:05]} 32. Bxc7 {[%clk 0:02:21]} Qd7 {[%clk 0:00:48]} 33. Bxd6 {[%clk
0:02:16]} Qxd6 {[%clk 0:00:49]} 34. Qb5 {[%clk 0:02:17]} Re7 {[%clk 0:00:42]}
35. Qxa4 {[%clk 0:02:18]} g5 {[%clk 0:00:34]} 36. Qb4 {[%clk 0:01:59]} Qxb4
{[%clk 0:00:26]} 37. axb4 {[%clk 0:02:00]} gxh4 {[%clk 0:00:26]} 38. d6 {[%clk
0:01:53]} hxg3+ {[%clk 0:00:27]} 39. fxg3 {[%clk 0:01:44]} Rd7 {[%clk 0:00:28]}
40. Bxb7 {[%clk 0:01:32]} Rxb7 {[%clk 0:00:29]} 41. Rc7 {[%clk 0:01:23]} 1-0

[Variant "Standard"]
[Site "Europe Echecs"]